fUSD/lending_fUSD_20250125
["ID","MTS","AMOUNT","RATE_DAILY","PERIOD"]
[350323148,1737793852527,-500.0,0.00016986,2]
[350323149,1737793852538,-512.45,0.00017123,2]
[350323150,1737793852547,-500.0,0.00017123,2]
[350323151,1737793852556,-500.0,0.00017123,2]
[350323152,1737793852565,-512.45,0.0001726,2]
[350323153,1737793852575,-500.0,0.0001726,2]
[350323154,1737793852585,-500.0,0.0001726,2]
[350323155,1737793852595,-512.45,0.00017397,2]
[350323156,1737793852605,-500.0,0.00017397,2]
[350323157,1737793852616,-500.0,0.00017397,2]
[350323158,1737793852627,-512.45,0.00017534,2]
[350323159,1737793852637,-500.0,0.00017534,2]
[350323160,1737793852646,-500.0,0.00017534,2]
[350323161,1737793852656,-512.45,0.00017671,2]
[350323162,1737793852666,-500.0,0.00017671,2]
[350323163,1737793852676,-512.45,0.00017808,2]
[350323164,1737793852685,-500.0,0.00017808,2]
[350323165,1737793852694,-512.45,0.00017945,2]
[350323166,1737793852704,-500.0,0.00017945,2]
[350323167,1737793852714,-512.45,0.00018082,2]
[350323168,1737793852724,-500.0,0.00018082,2]
[350323169,1737793852733,-512.45,0.00018219,2]
[350323170,1737793852742,-512.45,0.00018356,2]
[350323171,1737793852751,-254.63,0.00019239,2]
[350323172,1737793852760,-500.0,0.00019434,2]
[350323173,1737793852770,-500.0,0.00019571,2]
[350323174,1737793852780,-500.0,0.00019708,2]
[350323175,1737793852789,-831.45,0.00019844,2]
[350323176,1737793852798,-500.0,0.00019845,2]
[350323177,1737793852807,-831.45,0.00019981,2]
[350323178,1737793852817,-500.0,0.00019982,2]
[350323179,1737793852826,-85.0629356,0.00019988,2]
[350323180,1737793852914,-273.79713915,0.00017671,2]
[350323181,1737793852926,-226.20286085,0.00017671,2]
[350323182,1737793852935,-92.06803646,0.00018219,2]
[350323183,1737793852947,-407.93196354,0.00018219,2]
[350323184,1737793852956,-512.45,0.00018493,2]
[350323185,1737793852965,-315744.32537049,0.00019988,2]
[350323186,1737793853215,-153.134356,0.00016438,2]
[350323187,1737793853224,-192.00703838,0.00017808,2]
[350323188,1737793853235,-74.16487537,0.00017808,2]
[350323189,1737793853245,-339.23779231,0.00018356,2]
[350323190,1737793853256,-160.76220769,0.00018356,2]
[350323191,1737793853265,-500.0,0.00018493,2]
[350323192,1737793853279,-172.43101704,0.0001863,2]
[350323198,1737794073379,150.0,0.00021675,120]
[350323204,1737794443378,150.0,9.001e-05,2]
[350323207,1737794731132,-150.92,0.00010137,2]
[350323208,1737794731152,-191.73,0.00012329,2]
[350323209,1737794731172,-200.35,0.0001246,2]
[350323210,1737794731192,-250.0,0.00013708,2]
[350323211,1737794731212,-1593.23875898,0.00013781,7]
[350323213,1737794805085,-254.92382419,0.00013781,7]
[350323216,1737794840128,-172.23,0.00011782,2]
[350323217,1737794840148,-8.62821569,0.00013781,7]
[350323218,1737794840168,-138.41441358,0.00014094,2]
[350323239,1737795031841,-1240.28,0.00012788,2]
[350323240,1737795031851,-201.25444365,0.00014024,2]
[350323241,1737795031861,-28.25225309,0.00014094,2]
[350323242,1737795031871,-191.60208421,0.00014627,2]
[350323243,1737795031881,-150.0,0.00014658,2]
[350323244,1737795031891,-1426.45176041,0.00014679,2]
[350323245,1737795031901,-1426.4517604,0.00014682,2]
[350323246,1737795031911,-250.0,0.00014727,2]
[350323247,1737795031921,-172.23,0.00014727,2]
[350323248,1737795031932,-200.0,0.00014736,2]
[350323249,1737795031943,-658.95,0.00014748,2]
[350323250,1737795031954,-250.0,0.00014779,2]
[350323251,1737795031965,-300.0,0.00014781,2]
[350323252,1737795031975,-300.0,0.00014781,2]
[350323253,1737795031987,-3646.31276874,0.00014782,2]
[350323254,1737795032013,-1363.70176898,0.00014782,2]
[350323268,1737795032456,-847.84546228,0.00014782,2]
[350323269,1737795032468,-1500.0,0.00014802,2]
[350323270,1737795032478,-1240.28,0.00015051,2]
[350323271,1737795032488,-166.66666667,0.00015248,2]
[350323273,1737795032497,-482.87,0.0001532,2]
[350323275,1737795032506,-369.52146273,0.00015324,2]
[350323281,1737795037961,-113.34853727,0.00015324,2]
[350323282,1737795037970,-151.78910271,0.00015328,2]
[350323287,1737795039933,-331.08089729,0.00015328,2]
[350323288,1737795039944,-482.87,0.00015332,2]
[350323289,1737795039954,-482.87,0.00015336,2]
[350323290,1737795039964,-208.94016696,0.00015338,2]
[350323291,1737795040001,-3720.16577917,0.00015338,2]
[350323292,1737795040018,-482.87,0.0001534,2]
[350323293,1737795040028,-482.87,0.00015344,2]
[350323294,1737795040037,-482.87,0.00015348,2]
[350323295,1737795040048,-482.87,0.00015352,2]
[350323296,1737795040058,-150.0,0.00015356,2]
[350323297,1737795040068,-482.87,0.00015356,2]
[350323298,1737795040078,-482.87,0.0001536,2]
[350323299,1737795040088,-482.87,0.00015364,2]
[350323300,1737795040098,-482.87,0.00015368,2]
[350323301,1737795040108,-482.87,0.00015372,2]
[350323302,1737795040118,-364.68949673,0.00015376,2]
[350323303,1737795040246,-118.18050327,0.00015376,2]
[350323304,1737795040256,-482.87,0.0001538,2]
[350323305,1737795040265,-482.87,0.00015384,2]
[350323306,1737795040275,-482.87,0.00015388,2]
[350323307,1737795040285,-482.87,0.00015392,2]
[350323308,1737795040295,-482.87,0.00015396,2]
[350323309,1737795040305,-311.91,0.0001547,2]
[350323310,1737795040315,-485.99,0.00015575,2]
[350323311,1737795040325,-369.54,0.00015741,2]
[350323312,1737795040336,-200.0,0.0001576,2]
[350323313,1737795040346,-1000.0,0.00015901,2]
[350323314,1737795040356,-184.84,0.00016015,2]
[350323315,1737795040366,-1510.01253441,0.00016054,2]
[350323316,1737795040378,-1258.92010333,0.00016054,2]
[350323317,1737795040390,-1296.17932544,0.00016054,2]
[350323318,1737795040402,-307.68738,0.00016054,2]
[350323320,1737795040413,-511.06184203,0.00016054,2]
[350323326,1737795042860,-2599.444995,0.00016054,2]
[350323327,1737795042912,-2841.69381979,0.00016054,2]
[350323328,1737795042922,-846.93,0.0001617,2]
[350323329,1737795042931,-163.25685663,0.0001618,2]
[350323330,1737795042968,-256.74314337,0.0001618,2]
[350323331,1737795042977,-674.69128628,0.00016241,2]
[350323332,1737795042988,-1521.71871372,0.00016241,2]
[350323333,1737795042998,-2527.44279188,0.000163,5]
[350323334,1737795043022,-362.62162505,0.000163,5]
[350323335,1737795043033,-419.81652618,0.000163,5]
[350323336,1737795043078,-2248.11905689,0.000163,5]
[350323337,1737795043090,-948.13,0.00016308,2]
[350323338,1737795043100,-866.05148172,0.00016338,2]
[350323339,1737795043109,-191.6020842,0.00016338,2]
[350323340,1737795043119,-172.53,0.00016346,2]
[350323341,1737795043128,-250.0,0.00016415,2]
[350323342,1737795043137,-500.0,0.00016438,2]
[350323343,1737795043146,-516.35449352,0.00016438,2]
[350323344,1737795043155,-500.0,0.00016438,2]
[350323345,1737795043164,-537.33998131,0.00016438,2]
[350323346,1737795043174,-500.0,0.00016438,2]
[350323347,1737795043183,-500.0,0.00016438,2]
[350323348,1737795043192,-500.0,0.00016438,2]
[350323349,1737795043202,-517.65938348,0.00016438,2]
[350323350,1737795043211,-500.0,0.00016438,2]
[350323351,1737795043221,-500.0,0.00016438,2]
[350323352,1737795043230,-500.0,0.00016438,2]
[350323353,1737795043239,-500.0,0.00016438,2]
[350323354,1737795043249,-500.0,0.00016438,2]
[350323355,1737795043258,-500.0,0.00016438,2]
[350323356,1737795043267,-500.0,0.00016438,2]
[350323357,1737795043276,-500.0,0.00016438,2]
[350323358,1737795043285,-489.34811636,0.00016438,2]
[350323359,1737795043295,-500.0,0.00016438,2]
[350323360,1737795043304,-500.0,0.00016438,2]
[350323361,1737795043313,-500.0,0.00016438,2]
[350323362,1737795043322,-500.0,0.00016438,2]
[350323363,1737795043332,-500.0,0.00016438,2]
[350323364,1737795043343,-500.0,0.00016438,2]
[350323365,1737795043352,-500.0,0.00016438,2]
[350323366,1737795043361,-500.0,0.00016438,2]
[350323367,1737795043371,-349.23951969,0.00016438,2]
[350323368,1737795043380,-500.0,0.00016438,2]
[350323369,1737795043390,-564.72,0.00016438,2]
[350323370,1737795043399,-500.0,0.00016438,2]
[350323371,1737795043408,-500.0,0.00016438,2]
[350323372,1737795043418,-500.0,0.00016438,2]
[350323373,1737795043427,-500.0,0.00016438,2]
[350323374,1737795043436,-500.0,0.00016438,2]
[350323375,1737795043446,-557.43531474,0.00016438,2]
[350323376,1737795043455,-500.0,0.00016438,2]
[350323377,1737795043465,-289.06687656,0.00016438,2]
[350323378,1737795043474,-500.0,0.00016438,2]
[350323379,1737795043483,-571.96,0.00016438,2]
[350323380,1737795043493,-500.0,0.00016438,2]
[350323381,1737795043502,-500.0,0.00016438,2]
[350323382,1737795043511,-542.45,0.00016438,2]
[350323383,1737795043521,-537.32,0.00016438,2]
[350323384,1737795043531,-500.0,0.00016438,2]
[350323385,1737795043540,-500.0,0.00016438,2]
[350323386,1737795043549,-500.0,0.00016438,2]
[350323387,1737795043559,-500.0,0.00016438,2]
[350323388,1737795043568,-500.0,0.00016438,2]
[350323389,1737795043579,-500.0,0.00016438,2]
[350323390,1737795043590,-500.0,0.00016438,2]
[350323391,1737795043599,-502.48281567,0.00016438,2]
[350323392,1737795043608,-502.89837272,0.00016438,2]
[350323393,1737795043617,-500.0,0.00016438,2]
[350323394,1737795043627,-500.0,0.00016438,2]
[350323395,1737795043635,-500.0,0.00016438,2]
[350323396,1737795043645,-505.65374702,0.00016438,2]
[350323397,1737795043654,-513.57307579,0.00016438,2]
[350323398,1737795043663,-500.0,0.00016438,2]
[350323399,1737795043673,-502.42391245,0.00016438,2]
[350323400,1737795043683,-500.0,0.00016438,2]
[350323402,1737795043692,-500.0,0.00016438,2]
[350323404,1737795043701,-508.8033101,0.00016438,2]
[350323405,1737795043711,-505.73971225,0.00016438,2]
[350323407,1737795043720,-597.71424144,0.00016438,2]
[350323409,1737795043729,-500.0,0.00016438,2]
[350323411,1737795043741,-525.42624158,0.00016438,2]
[350323413,1737795043751,-505.47653232,0.00016438,2]
[350323414,1737795043760,-503.24812449,0.00016438,2]
[350323415,1737795043769,-500.0,0.00016438,2]
[350323417,1737795043779,-692.33921798,0.00016438,2]
[350323419,1737795043788,-500.0,0.00016438,2]
[350323420,1737795043798,-500.0,0.00016438,2]
[350323421,1737795043807,-500.0,0.00016438,2]
[350323422,1737795043820,-500.0,0.00016438,2]
[350323423,1737795043831,-500.0,0.00016438,2]
[350323424,1737795043842,-500.0,0.00016438,2]
[350323425,1737795043851,-495.72806849,0.00016438,2]
[350323426,1737795043864,-4.27193151,0.00016438,2]
[350323427,1737795043875,-500.0,0.00016438,2]
[350323428,1737795043885,-500.0,0.00016438,2]
[350323429,1737795043894,-198.39247819,0.00016438,2]
[350323430,1737795043903,-500.0,0.00016438,2]
[350323431,1737795043912,-500.0,0.00016438,2]
[350323432,1737795043922,-510.44039671,0.00016438,2]
[350323433,1737795043931,-638.91078897,0.00016438,2]
[350323434,1737795043941,-500.0,0.00016438,2]
[350323435,1737795043951,-500.0,0.00016438,2]
[350323436,1737795043960,-500.0,0.00016438,2]
[350323437,1737795043971,-500.0,0.00016438,2]
[350323438,1737795043980,-500.0,0.00016438,2]
[350323439,1737795043989,-500.0,0.00016438,2]
[350323440,1737795043999,-500.0,0.00016438,2]
[350323441,1737795044008,-500.0,0.00016438,2]
[350323442,1737795044184,-500.0,0.00016438,2]
[350323443,1737795044194,-500.0,0.00016438,2]
[350323444,1737795044203,-500.0,0.00016438,2]
[350323445,1737795044213,-500.0,0.00016438,2]
[350323446,1737795044222,-500.0,0.00016438,2]
[350323447,1737795044231,-500.0,0.00016438,2]
[350323448,1737795044241,-562.96,0.00016438,2]
[350323449,1737795044250,-500.0,0.00016438,2]
[350323450,1737795044259,-500.0,0.00016438,2]
[350323451,1737795044268,-571.54,0.00016438,2]
[350323452,1737795044278,-550.98,0.00016438,2]
[350323453,1737795044287,-500.0,0.00016438,2]
[350323454,1737795044296,-503.08,0.00016438,2]
[350323455,1737795044305,-369.51448931,0.00016438,2]
[350323456,1737795044315,-500.0,0.00016438,2]
[350323457,1737795044324,-500.0,0.00016438,2]
[350323458,1737795044333,-500.0,0.00016438,2]
[350323459,1737795044345,-180.67869314,0.00016495,2]
[350323460,1737795044355,-369.54,0.00016528,2]
[350323461,1737795044364,-500.0,0.00016574,2]
[350323462,1737795044373,-511.19382828,0.00016574,2]
[350323463,1737795044383,-500.0,0.00016574,2]
[350323464,1737795044392,-502.85328189,0.00016574,2]
[350323465,1737795044401,-500.0,0.00016574,2]
[350323466,1737795044410,-509.87219398,0.00016574,2]
[350323467,1737795044420,-503.87459361,0.00016574,2]
[350323468,1737795044429,-500.0,0.00016574,2]
[350323469,1737795044438,-500.0,0.00016574,2]
[350323470,1737795044447,-495.53330339,0.00016574,2]
[350323471,1737795044456,-500.0,0.00016574,2]
[350323472,1737795044465,-500.0,0.00016574,2]
[350323473,1737795044474,-500.0,0.00016574,2]
[350323474,1737795044483,-500.0,0.00016574,2]
[350323475,1737795044492,-500.0,0.00016574,2]
[350323476,1737795044502,-503.81937368,0.00016574,2]
[350323477,1737795044511,-500.0,0.00016574,2]
[350323478,1737795044520,-500.0,0.00016574,2]
[350323479,1737795044530,-500.0,0.00016574,2]
[350323480,1737795044539,-500.0,0.00016574,2]
[350323481,1737795044549,-500.0,0.00016574,2]
[350323482,1737795044558,-500.0,0.00016574,2]
[350323483,1737795044567,-503.67484123,0.00016574,2]
[350323484,1737795044577,-500.0,0.00016574,2]
[350323485,1737795044586,-500.0,0.00016574,2]
[350323486,1737795044596,-502.14220295,0.00016574,2]
[350323487,1737795044606,-500.0,0.00016574,2]
[350323488,1737795044615,-500.0,0.00016574,2]
[350323489,1737795044624,-500.0,0.00016574,2]
[350323490,1737795044634,-500.0,0.00016574,2]
[350323491,1737795044643,-500.0,0.00016574,2]
[350323492,1737795044652,-500.0,0.00016574,2]
[350323493,1737795044662,-502.12318188,0.00016574,2]
[350323494,1737795044671,-510.0668394,0.00016574,2]
[350323495,1737795044680,-504.89912797,0.00016574,2]
[350323496,1737795044689,-500.0,0.00016574,2]
[350323497,1737795044699,-627.2665543,0.00016574,2]
[350323498,1737795044708,-500.0,0.00016574,2]
[350323499,1737795044717,-500.0,0.00016574,2]
[350323500,1737795044726,-500.0,0.00016574,2]
[350323501,1737795044737,-500.0,0.00016574,2]
[350323502,1737795044748,-503.06729396,0.00016574,2]
[350323503,1737795044758,-615.00810357,0.00016574,2]
[350323504,1737795044767,-505.29971901,0.00016574,2]
[350323505,1737795044776,-500.0,0.00016574,2]
[350323506,1737795044786,-500.0,0.00016574,2]
[350323507,1737795044795,-1564.23,0.00016574,2]
[350323508,1737795044804,-504.71378151,0.00016574,2]
[350323509,1737795044814,-889.15,0.00016574,2]
[350323510,1737795044823,-500.0,0.00016574,2]
[350323511,1737795044833,-1420.74,0.00016574,2]
[350323512,1737795044844,-500.0,0.00016574,2]
[350323513,1737795044854,-831.48,0.00016574,2]
[350323514,1737795044863,-500.0,0.00016574,2]
[350323515,1737795044872,-448.312197,0.00016574,2]
[350323516,1737795044882,-1034.29,0.00016574,2]
[350323517,1737795044891,-515.51647973,0.00016574,2]
[350323518,1737795044901,-160.275133,0.00016574,2]
[350323519,1737795044911,-500.0,0.00016574,2]
[350323520,1737795044922,-768.52,0.00016574,2]
[350323521,1737795044934,-500.0,0.00016574,2]
[350323522,1737795044945,-500.0,0.00016574,2]
[350323523,1737795044955,-500.0,0.00016574,2]
[350323524,1737795044965,-1919.23,0.00016574,2]
[350323525,1737795044977,-1731.81,0.00016574,2]
[350323526,1737795044987,-1725.71,0.00016574,2]
[350323527,1737795044996,-986.27,0.00016574,2]
[350323528,1737795045006,-500.0,0.00016574,2]
[350323529,1737795045015,-2081.97,0.00016574,2]
[350323530,1737795045027,-500.0,0.00016574,2]
[350323531,1737795045036,-500.0,0.00016574,2]
[350323532,1737795045047,-2700.8,0.00016574,2]
[350323533,1737795045056,-3504.71,0.00016574,2]
[350323534,1737795045065,-500.0,0.00016574,2]
[350323535,1737795045075,-658.34,0.00016574,2]
[350323536,1737795045085,-500.0,0.00016574,2]
[350323537,1737795045096,-506.3364256,0.00016574,2]
[350323538,1737795045106,-500.0,0.00016574,2]
[350323539,1737795045115,-500.0,0.00016574,2]
[350323540,1737795045124,-939.2,0.00016574,2]
[350323541,1737795045133,-500.0,0.00016574,2]
[350323542,1737795045143,-748.52,0.00016574,2]
[350323543,1737795045153,-685.3,0.00016574,2]
[350323544,1737795045162,-2681.93,0.00016574,2]
[350323545,1737795045171,-500.0,0.00016574,2]
[350323546,1737795045181,-2049.96,0.00016574,2]
[350323547,1737795045190,-541.53,0.00016574,2]
[350323548,1737795045199,-500.0,0.00016574,2]
[350323549,1737795045209,-500.0,0.00016574,2]
[350323550,1737795045218,-1986.53,0.00016574,2]
[350323551,1737795045227,-500.0,0.00016574,2]
[350323552,1737795045236,-1425.15,0.00016574,2]
[350323553,1737795045246,-500.0,0.00016574,2]
[350323554,1737795045255,-700.96,0.00016574,2]
[350323555,1737795045265,-1542.72,0.00016574,2]
[350323556,1737795045275,-500.0,0.00016574,2]
[350323557,1737795045285,-500.0,0.00016574,2]
[350323558,1737795045295,-677.17,0.00016574,2]
[350323559,1737795045304,-500.0,0.00016574,2]
[350323560,1737795045314,-500.0,0.00016574,2]
[350323561,1737795045323,-500.0,0.00016574,2]
[350323562,1737795045333,-500.0,0.00016574,2]
[350323563,1737795045345,-625.16,0.00016574,2]
[350323564,1737795045354,-2185.27,0.00016574,2]
[350323565,1737795045364,-792.43,0.00016574,2]
[350323566,1737795045373,-663.42,0.00016574,2]
[350323567,1737795045383,-500.0,0.00016574,2]
[350323568,1737795045392,-500.0,0.00016574,2]
[350323569,1737795045401,-500.0,0.00016574,2]
[350323570,1737795045411,-503.0773162,0.00016574,2]
[350323571,1737795045420,-914.28,0.00016574,2]
[350323572,1737795045430,-500.0,0.00016574,2]
[350323573,1737795045439,-500.0,0.00016574,2]
[350323574,1737795045450,-500.0,0.00016574,2]
[350323575,1737795045459,-500.0,0.00016574,2]
[350323576,1737795045470,-500.0,0.00016574,2]
[350323577,1737795045480,-375.51152162,0.00016574,2]
[350323578,1737795045490,-582.11,0.00016574,2]
[350323579,1737795045501,-500.0,0.00016574,2]
[350323580,1737795045512,-500.0,0.00016574,2]
[350323581,1737795045522,-850.86,0.00016574,2]
[350323582,1737795045532,-500.0,0.00016574,2]
[350323583,1737795045542,-500.0,0.00016574,2]
[350323584,1737795045552,-500.0,0.00016574,2]
[350323585,1737795045562,-500.0,0.00016574,2]
[350323586,1737795045574,-1545.6,0.00016574,2]
[350323587,1737795045584,-500.0,0.00016574,2]
[350323588,1737795045596,-1325.64,0.00016574,2]
[350323589,1737795045606,-500.0,0.00016574,2]
[350323590,1737795045615,-500.0,0.00016574,2]
[350323591,1737795045624,-500.0,0.00016574,2]
[350323593,1737795045634,-500.0,0.00016574,2]
[350323594,1737795045644,-500.0,0.00016574,2]
[350323595,1737795045654,-359.67983574,0.00016574,2]
[350323596,1737795045663,-500.0,0.00016574,2]
[350323597,1737795045674,-728.54,0.00016574,2]
[350323598,1737795045683,-500.0,0.00016574,2]
[350323599,1737795045693,-500.0,0.00016574,2]
[350323600,1737795045702,-500.0,0.00016574,2]
[350323601,1737795045711,-608.35894277,0.00016574,2]
[350323602,1737795045720,-500.0,0.00016574,2]
[350323603,1737795045729,-500.0,0.00016574,2]
[350323604,1737795045742,-500.0,0.00016574,2]
[350323605,1737795045752,-500.0,0.00016574,2]
[350323606,1737795045762,-500.0,0.00016574,2]
[350323607,1737795045772,-234.93988783,0.00016574,2]
[350323608,1737795045783,-500.0,0.00016574,2]
[350323609,1737795045793,-500.0,0.00016574,2]
[350323610,1737795045803,-500.0,0.00016574,2]
[350323611,1737795045813,-168.33943857,0.00016574,2]
[350323612,1737795045824,-523.32115828,0.00016575,2]
[350323613,1737795045834,-500.0,0.00016575,2]
[350323614,1737795045846,-500.0,0.00016575,2]
[350323615,1737795045855,-500.0,0.00016575,2]
[350323616,1737795045863,-500.0,0.00016575,2]
[350323617,1737795045872,-500.0,0.00016575,2]
[350323618,1737795045885,-397.21259959,0.00016575,2]
[350323619,1737795045894,-500.0,0.00016575,2]
[350323620,1737795045904,-500.0,0.00016575,2]
[350323621,1737795045914,-213.32461911,0.00016575,2]
[350323622,1737795045923,-522.19184487,0.00016575,2]
[350323623,1737795045933,-500.0,0.00016575,2]
[350323624,1737795045942,-245.38682193,0.00016575,2]
[350323625,1737795045952,-523.54417537,0.00016575,2]
[350323626,1737795045961,-500.0,0.00016575,2]
[350323627,1737795045971,-500.0,0.00016575,2]
[350323628,1737795045981,-500.0,0.00016575,2]
[350323629,1737795045991,-500.0,0.00016575,2]
[350323630,1737795046000,-564.72,0.00016575,2]
[350323631,1737795046010,-523.94573386,0.00016575,2]
[350323632,1737795046019,-500.0,0.00016575,2]
[350323633,1737795046029,-500.0,0.00016575,2]
[350323634,1737795046038,-500.0,0.00016575,2]
[350323635,1737795046047,-500.0,0.00016575,2]
[350323636,1737795046057,-571.96,0.00016575,2]
[350323637,1737795046066,-500.0,0.00016575,2]
[350323638,1737795046077,-500.0,0.00016575,2]
[350323639,1737795046086,-542.45,0.00016575,2]
[350323640,1737795046098,-537.32,0.00016575,2]
[350323641,1737795046107,-500.0,0.00016575,2]
[350323642,1737795046116,-500.0,0.00016575,2]
[350323643,1737795046126,-500.0,0.00016575,2]
[350323644,1737795046135,-500.0,0.00016575,2]
[350323645,1737795046145,-544.77,0.00016575,2]
[350323646,1737795046154,-500.0,0.00016575,2]
[350323647,1737795046164,-500.0,0.00016575,2]
[350323648,1737795046173,-500.0,0.00016575,2]
[350323649,1737795046183,-500.0,0.00016575,2]
[350323650,1737795046192,-500.0,0.00016575,2]
[350323651,1737795046202,-500.0,0.00016575,2]
[350323652,1737795046212,-500.0,0.00016575,2]
[350323653,1737795046221,-180.49896227,0.00016575,2]
[350323654,1737795046231,-500.0,0.00016575,2]
[350323655,1737795046241,-500.0,0.00016575,2]
[350323656,1737795046251,-500.0,0.00016575,2]
[350323657,1737795046260,-500.0,0.00016575,2]
[350323658,1737795046270,-500.0,0.00016575,2]
[350323660,1737795046280,-500.0,0.00016575,2]
[350323662,1737795046290,-500.0,0.00016575,2]
[350323664,1737795046299,-500.0,0.00016575,2]
[350323665,1737795046309,-500.0,0.00016575,2]
[350323666,1737795046318,-500.0,0.00016575,2]
[350323667,1737795046327,-562.96,0.00016575,2]
[350323668,1737795046337,-500.0,0.00016575,2]
[350323669,1737795046348,-500.0,0.00016575,2]
[350323670,1737795046358,-571.54,0.00016575,2]
[350323671,1737795046367,-500.0,0.00016575,2]
[350323672,1737795046376,-503.08,0.00016575,2]
[350323673,1737795046386,-500.0,0.00016575,2]
[350323674,1737795046395,-500.0,0.00016575,2]
[350323675,1737795046405,-500.0,0.00016575,2]
[350323676,1737795046414,-82566.35800998,0.00016575,2]
[350323677,1737795046424,-169.64,0.00016594,2]
[350323679,1737795046433,-30966.91832159,0.00016611,2]
[350323681,1737795046442,-500.0,0.00016711,2]
[350323683,1737795046452,-416.21726226,0.00016711,2]
[350323685,1737795046461,-505.67513924,0.00016711,2]
[350323687,1737795046470,-500.0,0.00016711,2]
[350323689,1737795046479,-500.0,0.00016711,2]
[350323691,1737795046489,-500.0,0.00016711,2]
[350323693,1737795046499,-500.0,0.00016711,2]
[350323695,1737795046508,-500.0,0.00016711,2]
[350323697,1737795046517,-500.0,0.00016711,2]
[350323699,1737795046527,-500.0,0.00016711,2]
[350323700,1737795046537,-399.49308085,0.00016711,2]
[350323701,1737795046546,-500.0,0.00016711,2]
[350323702,1737795046555,-500.0,0.00016711,2]
[350323703,1737795046565,-500.0,0.00016711,2]
[350323704,1737795046575,-500.0,0.00016711,2]
[350323705,1737795046584,-500.0,0.00016711,2]
[350323706,1737795046596,-388.44896427,0.00016711,2]
[350323707,1737795046605,-500.0,0.00016711,2]
[350323708,1737795046614,-500.0,0.00016711,2]
[350323709,1737795046624,-637.00594602,0.00016711,2]
[350323710,1737795046633,-500.0,0.00016711,2]
[350323711,1737795046643,-500.0,0.00016711,2]
[350323712,1737795046653,-500.0,0.00016711,2]
[350323713,1737795046663,-501.98,0.00016711,2]
[350323714,1737795046674,-500.0,0.00016711,2]
[350323715,1737795046683,-544.53,0.00016711,2]
[350323716,1737795046693,-500.0,0.00016711,2]
[350323717,1737795046702,-1564.23,0.00016711,2]
[350323718,1737795046712,-889.15,0.00016711,2]
[350323719,1737795046721,-1420.74,0.00016711,2]
[350323720,1737795046731,-500.0,0.00016711,2]
[350323721,1737795046744,-831.48,0.00016711,2]
[350323722,1737795046754,-500.0,0.00016711,2]
[350323723,1737795046765,-500.0,0.00016711,2]
[350323724,1737795046774,-448.312197,0.00016711,2]
[350323725,1737795046785,-1034.29,0.00016711,2]
[350323726,1737795046794,-500.0,0.00016711,2]
[350323727,1737795046803,-768.52,0.00016711,2]
[350323728,1737795046815,-500.0,0.00016711,2]
[350323729,1737795046824,-3278.04,0.00016711,2]
[350323730,1737795046834,-500.0,0.00016711,2]
[350323731,1737795046845,-500.0,0.00016711,2]
[350323732,1737795046855,-1919.23,0.00016711,2]
[350323733,1737795046864,-546.38,0.00016711,2]
[350323734,1737795046874,-1731.81,0.00016711,2]
[350323735,1737795046884,-50.13725116,0.00016711,2]